Workbook

Sheet Nakupovalni seznam
M1: =izračuni!M9 -> MLEČNI IZDELKI SKUPAJ
B2: Seznam živil
C3: Opravljeno | D3: ARTIKEL | E3: TRGOVINA | F3: KATEGORIJA | G3: KOLIČINA | H3: ENOTA | I3: CENA ENOTE | J3: SKUPAJ | K3: Pripomba | M3: =izračuni!L9 -> 37
C4: 1 | D4: Pomaranče | E4: Špecerija | F4: Sadje in zelenjava | G4: 2 | H4: kg | I4: 2.99 € | J4: =IFERROR(Seznam[KOLIČINA]*Seznam[CENA ENOTE],"") -> 5.98 € | M4: =izračuni!M8 -> SADJE IN ZELENJAVA SKUPAJ
D5: Jabolka | E5: Sadovnjak | F5: Sadje in zelenjava | G5: 3 | H5: kg | I5: 1.99 € | J5: =IFERROR(Seznam[KOLIČINA]*Seznam[CENA ENOTE],"") -> 5.97 € | K5: Imam kupon | M5: =izračuni!L8 -> 45
D6: Banane | E6: Špecerija | F6: Sadje in zelenjava | G6: 1 | H6: šop | I6: 3.99 € | J6: =IFERROR(Seznam[KOLIČINA]*Seznam[CENA ENOTE],"") -> 3.99 €
D7: Solata | E7: Trgovina | F7: Sadje in zelenjava | G7: 2 | H7: glava | I7: 2.29 € | J7: =IFERROR(Seznam[KOLIČINA]*Seznam[CENA ENOTE],"") -> 4.58 € | M7: =izračuni!M7 -> MESO SKUPAJ
D8: Paradižnik | E8: Trgovina | F8: Sadje in zelenjava | G8: 4 | H8: kg | I8: 3.49 € | J8: =IFERROR(Seznam[KOLIČINA]*Seznam[CENA ENOTE],"") -> 13.96 € | M8: =izračuni!L7 -> 80
D9: Buča | E9: Trgovina | F9: Sadje in zelenjava | G9: 2 | H9: kos | I9: 1.50 € | J9: =IFERROR(Seznam[KOLIČINA]*Seznam[CENA ENOTE],"") -> 3.00 €
D10: Zelena | E10: Špecerija | F10: Sadje in zelenjava | G10: 2 | H10: šop | I10: 1.99 € | J10: =IFERROR(Seznam[KOLIČINA]*Seznam[CENA ENOTE],"") -> 3.98 € | M10: =izračuni!M6 -> MORSKA HRANA SKUPAJ
D11: Kumarice | E11: Trgovina | F11: Sadje in zelenjava | G11: 1 | H11: kg | I11: 2.29 € | J11: =IFERROR(Seznam[KOLIČINA]*Seznam[CENA ENOTE],"") -> 2.29 € | M11: =izračuni!L6 -> 109
D12: Gobe | E12: Špecerija | F12: Sadje in zelenjava | G12: 0.5 | H12: kg | I12: 2.25 € | J12: =IFERROR(Seznam[KOLIČINA]*Seznam[CENA ENOTE],"") -> 1.13 € | K12: Šampinjoni
D13: Mleko | E13: Dostava na dom | F13: Mlečni izdelki | G13: 2 | H13: liter | I13: 3.99 € | J13: =IFERROR(Seznam[KOLIČINA]*Seznam[CENA ENOTE],"") -> 7.98 € | M13: =izračuni!M3 -> DRUGO SKUPAJ
D14: Sir | E14: Dostava na dom | F14: Mlečni izdelki | G14: 1 | H14: kg | I14: 9.99 € | J14: =IFERROR(Seznam[KOLIČINA]*Seznam[CENA ENOTE],"") -> 9.99 € | K14: Več sirov v kosu | M14: =izračuni!L3 -> 0
D15: Jajca | E15: Dostava na dom | F15: Mlečni izdelki | G15: 2 | H15: ducat | I15: 3.50 € | J15: =IFERROR(Seznam[KOLIČINA]*Seznam[CENA ENOTE],"") -> 7.00 €
D16: Skuta | E16: Dostava na dom | F16: Mlečni izdelki | G16: 1 | H16: 16 dag | I16: 3.89 € | J16: =IFERROR(Seznam[KOLIČINA]*Seznam[CENA ENOTE],"") -> 3.89 € | M16: =izračuni!M4 -> ŠPECERIJA SKUPAJ
D17: Kisla smetana | E17: Dostava na dom | F17: Mlečni izdelki | G17: 1 | H17: 8 dag | I17: 2.99 € | J17: =IFERROR(Seznam[KOLIČINA]*Seznam[CENA ENOTE],"") -> 2.99 € | M17: =ŽivilaSkupaj -> 271
D18: Jogurt | E18: Špecerija | F18: Mlečni izdelki | G18: 1 | H18: 16 dag | I18: 4.99 € | J18: =IFERROR(Seznam[KOLIČINA]*Seznam[CENA ENOTE],"") -> 4.99 € | K18: Grški sir z medom
D19: Govedina | E19: Trgovina | F19: Meso | G19: 10 | H19: kg | I19: 7.99 € | J19: =IFERROR(Seznam[KOLIČINA]*Seznam[CENA ENOTE],"") -> 79.90 € | K19: Fileji s slanino
D20: Divji losos | E20: Ribja tržnica | F20: Morska hrana | G20: 6 | H20: kg | I20: 8.99 € | J20: =IFERROR(Seznam[KOLIČINA]*Seznam[CENA ENOTE],"") -> 53.94 €
D21: Rakove palčke | E21: Ribja tržnica | F21: Morska hrana | G21: 5 | H21: kg | I21: 10.99 € | J21: =IFERROR(Seznam[KOLIČINA]*Seznam[CENA ENOTE],"") -> 54.95 €

Sheet izračuni (hidden)
A1: *** Ta seznam naj ostane skrit ***
K3: =SUM(Seznam[SKUPAJ])-SUM(K6:K9) -> 0.00 € | L3: =ROUND(K3,0) -> 0 € | M3: DRUGO SKUPAJ
L4: =ROUNDUP(SUM(Seznam[SKUPAJ]),0) -> 271 € | M4: ŠPECERIJA SKUPAJ
E6: =IFERROR(INDEX(Seznam[KATEGORIJA],MATCH(,COUNTIF($E$5:E5,Seznam[KATEGORIJA]),)),"") -> Sadje in zelenjava | F6: =SUMIFS(Seznam[SKUPAJ],Seznam[KATEGORIJA],E6) -> 44.875 | G6: =F6+ROW()/1000000 -> 44.875006 | H6: =LARGE($G$6:$G$21,1) -> 108.890009 | I6: =MATCH(H6,$G$6:$G$21,0) -> 4 | J6: =INDEX($E$6:$E$21,$I6) -> Morska hrana | K6: =INDEX($F$6:$F$21,$I6) -> 108.89 € | L6: =ROUND(K6,0) -> 109 € | M6: =UPPER(J6) & " SKUPAJ" -> MORSKA HRANA SKUPAJ
E7: =IFERROR(INDEX(Seznam[KATEGORIJA],MATCH(,COUNTIF($E$5:E6,Seznam[KATEGORIJA]),)),"") -> Mlečni izdelki | F7: =SUMIFS(Seznam[SKUPAJ],Seznam[KATEGORIJA],E7) -> 36.84 | G7: =F7+ROW()/1000000 -> 36.840007 | H7: =LARGE($G$6:$G$21,2) -> 79.900008 | I7: =MATCH(H7,$G$6:$G$21,0) -> 3 | J7: =INDEX($E$6:$E$21,$I7) -> Meso | K7: =INDEX($F$6:$F$21,$I7) -> 79.90 € | L7: =ROUND(K7,0) -> 80 € | M7: =UPPER(J7) & " SKUPAJ" -> MESO SKUPAJ
E8: =IFERROR(INDEX(Seznam[KATEGORIJA],MATCH(,COUNTIF($E$5:E7,Seznam[KATEGORIJA]),)),"") -> Meso | F8: =SUMIFS(Seznam[SKUPAJ],Seznam[KATEGORIJA],E8) -> 79.9 | G8: 79.900008 | H8: =LARGE($G$6:$G$21,3) -> 44.875006 | I8: =MATCH(H8,$G$6:$G$21,0) -> 1 | J8: =INDEX($E$6:$E$21,$I8) -> Sadje in zelenjava | K8: =INDEX($F$6:$F$21,$I8) -> 44.88 € | L8: =ROUND(K8,0) -> 45 € | M8: =UPPER(J8) & " SKUPAJ" -> SADJE IN ZELENJAVA SKUPAJ
E9: =IFERROR(INDEX(Seznam[KATEGORIJA],MATCH(,COUNTIF($E$5:E8,Seznam[KATEGORIJA]),)),"") -> Morska hrana | F9: =SUMIFS(Seznam[SKUPAJ],Seznam[KATEGORIJA],E9) -> 108.89 | G9: 108.890009 | H9: =LARGE($G$6:$G$21,4) -> 36.840007 | I9: =MATCH(H9,$G$6:$G$21,0) -> 2 | J9: =INDEX($E$6:$E$21,$I9) -> Mlečni izdelki | K9: =INDEX($F$6:$F$21,$I9) -> 36.84 € | L9: =ROUND(K9,0) -> 37 € | M9: =UPPER(J9) & " SKUPAJ" -> MLEČNI IZDELKI SKUPAJ
E10: =IFERROR(INDEX(Seznam[KATEGORIJA],MATCH(,COUNTIF($E$5:E9,Seznam[KATEGORIJA]),)),"") ->  | F10: =SUMIFS(Seznam[SKUPAJ],Seznam[KATEGORIJA],E10) -> 0 | G10: 1e-05
E11: =IFERROR(INDEX(Seznam[KATEGORIJA],MATCH(,COUNTIF($E$5:E10,Seznam[KATEGORIJA]),)),"") ->  | F11: =SUMIFS(Seznam[SKUPAJ],Seznam[KATEGORIJA],E11) -> 0 | G11: 1.1e-05
E12: =IFERROR(INDEX(Seznam[KATEGORIJA],MATCH(,COUNTIF($E$5:E11,Seznam[KATEGORIJA]),)),"") ->  | F12: =SUMIFS(Seznam[SKUPAJ],Seznam[KATEGORIJA],E12) -> 0 | G12: 1.2e-05
E13: =IFERROR(INDEX(Seznam[KATEGORIJA],MATCH(,COUNTIF($E$5:E12,Seznam[KATEGORIJA]),)),"") ->  | F13: =SUMIFS(Seznam[SKUPAJ],Seznam[KATEGORIJA],E13) -> 0 | G13: 1.3e-05
E14: =IFERROR(INDEX(Seznam[KATEGORIJA],MATCH(,COUNTIF($E$5:E13,Seznam[KATEGORIJA]),)),"") ->  | F14: =SUMIFS(Seznam[SKUPAJ],Seznam[KATEGORIJA],E14) -> 0 | G14: 1.4e-05
E15: =IFERROR(INDEX(Seznam[KATEGORIJA],MATCH(,COUNTIF($E$5:E14,Seznam[KATEGORIJA]),)),"") ->  | F15: =SUMIFS(Seznam[SKUPAJ],Seznam[KATEGORIJA],E15) -> 0 | G15: 1.5e-05
E16: =IFERROR(INDEX(Seznam[KATEGORIJA],MATCH(,COUNTIF($E$5:E15,Seznam[KATEGORIJA]),)),"") ->  | F16: =SUMIFS(Seznam[SKUPAJ],Seznam[KATEGORIJA],E16) -> 0 | G16: 1.6e-05
E17: =IFERROR(INDEX(Seznam[KATEGORIJA],MATCH(,COUNTIF($E$5:E16,Seznam[KATEGORIJA]),)),"") ->  | F17: =SUMIFS(Seznam[SKUPAJ],Seznam[KATEGORIJA],E17) -> 0 | G17: 1.7e-05
E18: =IFERROR(INDEX(Seznam[KATEGORIJA],MATCH(,COUNTIF($E$5:E17,Seznam[KATEGORIJA]),)),"") ->  | F18: =SUMIFS(Seznam[SKUPAJ],Seznam[KATEGORIJA],E18) -> 0 | G18: 1.8e-05
E19: =IFERROR(INDEX(Seznam[KATEGORIJA],MATCH(,COUNTIF($E$5:E18,Seznam[KATEGORIJA]),)),"") ->  | F19: =SUMIFS(Seznam[SKUPAJ],Seznam[KATEGORIJA],E19) -> 0 | G19: 1.9e-05
E20: =IFERROR(INDEX(Seznam[KATEGORIJA],MATCH(,COUNTIF($E$5:E19,Seznam[KATEGORIJA]),)),"") ->  | F20: =SUMIFS(Seznam[SKUPAJ],Seznam[KATEGORIJA],E20) -> 0 | G20: 2e-05
E21: =IFERROR(INDEX(Seznam[KATEGORIJA],MATCH(,COUNTIF($E$5:E20,Seznam[KATEGORIJA]),)),"") ->  | F21: =SUMIFS(Seznam[SKUPAJ],Seznam[KATEGORIJA],E21) -> 0 | G21: 2.1e-05
